fUSD/lending_fUSD_20260601
["ID","MTS","AMOUNT","RATE_DAILY","PERIOD"]
[423621366,1780263045000,-123224.19,0.0001531,2]
[423621374,1780263045000,-2273.37776545,0.00015807,2]
[423621376,1780263045000,-300.0,0.00016,2]
[423621409,1780263045000,-649.601898,0.00016438,2]
[423621386,1780263045000,-500.0,0.000161,2]
[423621382,1780263045000,-500.0,0.000161,2]
[423621390,1780263045000,-500.0,0.000161,2]
[423621388,1780263045000,-500.0,0.000161,2]
[423621380,1780263045000,-500.0,0.000161,2]
[423621378,1780263045000,-500.0,0.000161,2]
[423621392,1780263045000,-500.0,0.000161,2]
[423621396,1780263045000,-1003.0,0.000161,2]
[423621394,1780263045000,-201.10590632,0.000161,7]
[423621398,1780263045000,-200.0,0.0001634,2]
[423621400,1780263045000,-512.3,0.00016438,2]
[423621403,1780263045000,-649.601898,0.00016438,2]
[423621411,1780263045000,-649.601898,0.00016438,2]
[423621422,1780263045000,-1050.0,0.00017796,2]
[423621384,1780263045000,-500.0,0.000161,2]
[423621463,1780263045000,-151.0,0.00018766,2]
[423621487,1780263045000,-518.696371,0.00019178,2]
[423621469,1780263045000,-151.0,0.00018766,2]
[423621547,1780263045000,-158.0,0.0002,2]
[423621536,1780263045000,-193.0,0.0002,2]
[423621532,1780263045000,-159.0,0.0002,2]
[423621538,1780263045000,-383.0,0.0002,2]
[423621549,1780263045000,-200.0,0.0002,2]
[423621534,1780263045000,-5286.26766859,0.0002,2]
[423621528,1780263045000,-196.72193406,0.000199,2]
[423621551,1780263045000,-1060.22129421,0.0002,2]
[423621554,1780263045000,-626.0,0.0002,2]
[423621557,1780263045000,-2651.58474907,0.0002,2]
[423621561,1780263045000,-288.0,0.0002,2]
[423621568,1780263045000,-156.0,0.0002,2]
[423621564,1780263045000,-186.0,0.0002,2]
[423621530,1780263045000,-196.72193406,0.000199,2]
[423621559,1780263045000,-299.999999,0.0002,2]
[423621570,1780263045000,-1188.0,0.0002,2]
[423621573,1780263045000,-4648.3,0.0002,2]
[423621593,1780263045000,-388.0,0.00021,2]
[423621587,1780263045000,-159.0,0.00021,2]
[423621585,1780263045000,-2405.55389863,0.00020958,2]
[423621589,1780263045000,-193.0,0.00021,2]
[423621591,1780263045000,-383.0,0.00021,2]
[423621577,1780263045000,-2000.0,0.00020274,7]
[423621583,1780263045000,-2684.65380489,0.000207,2]
[423621579,1780263045000,-512.3,0.00020381,2]
[423621595,1780263045000,-158.0,0.00021,2]
[423621575,1780263045000,-400.0,0.0002,2]
[423621581,1780263045000,-2319.72410669,0.0002041,2]
[423621566,1780263045000,-545.0,0.0002,2]
[423621545,1780263045000,-1313.45756698,0.0002,2]
[423621599,1780263045000,-626.0,0.00021,2]
[423621540,1780263045000,-388.0,0.0002,2]
[423621543,1780263045000,-245.72939499,0.0002,2]
[423621471,1780263045000,-151.0,0.00018766,2]
[423621473,1780263045000,-151.0,0.00018766,2]
[423621475,1780263045000,-151.0,0.00018766,2]
[423621485,1780263045000,-1618.90838443,0.00019,2]
[423621597,1780263045000,-3415.87687989,0.00021,7]
[423621497,1780263045000,-518.696371,0.00019178,2]
[423621477,1780263045000,-151.0,0.00018766,2]
[423621489,1780263045000,-518.696371,0.00019178,2]
[423621499,1780263045000,-518.696371,0.00019178,2]
[423621491,1780263045000,-518.696371,0.00019178,2]
[423621493,1780263045000,-518.696371,0.00019178,2]
[423621479,1780263045000,-151.0,0.00018766,2]
[423621483,1780263045000,-1463.69382468,0.00019,2]
[423621455,1780263045000,-151.0,0.00018766,2]
[423621481,1780263045000,-1003.0,0.000188,2]
[423621495,1780263045000,-518.696371,0.00019178,2]
[423621524,1780263045000,-2236.95670847,0.00019862,2]
[423621520,1780263045000,-2157.14243826,0.00019314,2]
[423621513,1780263045000,-151.0,0.00019178,2]
[423621518,1780263045000,-155.55330322,0.00019284,2]
[423621511,1780263045000,-151.0,0.00019178,2]
[423621522,1780263045000,-150.0,0.000195,7]
[423621507,1780263045000,-151.0,0.00019178,2]
[423621505,1780263045000,-151.0,0.00019178,2]
[423621515,1780263045000,-272.898764,0.00019178,2]
[423621503,1780263045000,-151.0,0.00019178,2]
[423621526,1780263045000,-196.72193408,0.000199,2]
[423621509,1780263045000,-151.0,0.00019178,2]
[423621501,1780263045000,-518.696371,0.00019178,2]
[423621653,1780263046000,-1003.0,0.00022,7]
[423621672,1780263046000,-512.3,0.00022353,2]
[423621663,1780263046000,-450.0,0.00022,2]
[423621676,1780263046000,-10269.34222228,0.000225,2]
[423621687,1780263046000,-354.51006341,0.00023,2]
[423621679,1780263046000,-2682.57183977,0.00022602,2]
[423621689,1780263046000,-626.0,0.00023,2]
[423621692,1780263046000,-288.0,0.00023,2]
[423621694,1780263046000,-186.0,0.00023,2]
[423621681,1780263046000,-193.0,0.00023,2]
[423621659,1780263046000,-763.1,0.00022,2]
[423621705,1780263046000,-150.73,0.00023425,2]
[423621698,1780263046000,-1188.0,0.00023,2]
[423621685,1780263046000,-388.0,0.00023,2]
[423621696,1780263046000,-545.0,0.00023,2]
[423621701,1780263046000,-225.38,0.00023,30]
[423621703,1780263046000,-2781.82699784,0.0002315,2]
[423621661,1780263046000,-181.54,0.00022,30]
[423621710,1780263046000,-4648.3,0.00023533,2]
[423621707,1780263046000,-1173.34378675,0.000235,2]
[423621712,1780263046000,-2884.75459676,0.00023698,2]
[423621722,1780263046000,-773.24136889,0.00023935,2]
[423621716,1780263046000,-693.39197629,0.0002377,2]
[423621720,1780263046000,-745.65223615,0.0002388,2]
[423621714,1780263046000,-1428.38747117,0.0002377,2]
[423621683,1780263046000,-383.0,0.00023,2]
[423621657,1780263046000,-1188.0,0.00022,2]
[423621650,1780263046000,-186.0,0.00022,2]
[423621667,1780263046000,-528.09684069,0.000221,7]
[423621718,1780263046000,-719.04747942,0.00023825,2]
[423621619,1780263046000,-674.57021364,0.00021199,2]
[423621605,1780263046000,-545.0,0.00021,2]
[423621615,1780263046000,-381.31417312,0.00021096,2]
[423621603,1780263046000,-186.0,0.00021,2]
[423621622,1780263046000,-2494.55939288,0.00021506,2]
[423621609,1780263046000,-1188.0,0.00021,2]
[423621624,1780263046000,-21390.45,0.00021757,2]
[423621611,1780263046000,-235.26200889,0.00021051,2]
[423621607,1780263046000,-156.0,0.00021,2]
[423621601,1780263046000,-288.0,0.00021,2]
[423621626,1780263046000,-27456.47,0.00021757,2]
[423621655,1780263046000,-545.0,0.00022,2]
[423621613,1780263046000,-179.35756026,0.00021073,2]
[423621637,1780263046000,-383.0,0.00022,2]
[423621636,1780263046000,-193.0,0.00022,2]
[423621630,1780263046000,-507.31049268,0.00021774,7]
[423621634,1780263046000,-165.0,0.00022,2]
[423621639,1780263046000,-388.0,0.00022,2]
[423621646,1780263046000,-626.0,0.00022,2]
[423621644,1780263046000,-815.0747695,0.00022,7]
[423621648,1780263046000,-288.0,0.00022,2]
[423621641,1780263046000,-172.0,0.00022,2]
[423621665,1780263046000,-2586.85809042,0.00022054,2]
[423621674,1780263046000,-409.33,0.000224,14]
[423621670,1780263046000,-308.24,0.000222,2]
[423621628,1780263046000,-4648.3,0.00021766,2]
[423621632,1780263046000,-5000.0,0.00021918,2]
[423621726,1780263046000,-1039.36066149,0.00024,2]
[423621724,1780263046000,-801.85129954,0.0002399,2]
[423621772,1780263046000,-997.16350561,0.0002432,2]
[423621790,1780263046000,-184409.06640047,0.00025,2]
[423621774,1780263046000,-512.3,0.00024324,2]
[423621793,1780263046000,-300.0,0.00025,2]
[423621799,1780263046000,-1206.0,0.00025,2]
[423621803,1780263046000,-4648.3,0.00025299,7]
[423621795,1780263046000,-197.0,0.00025,2]
[423621805,1780263046000,-1592.87721992,0.00025414,2]
[423621797,1780263046000,-552.0,0.00025,2]
[423621800,1780263046000,-150.0,0.00025014,22]
[423621809,1780263046000,-652.64,0.00025786,2]
[423621811,1780263046000,-758.18,0.00025786,2]
[423621807,1780263046000,-1254.59,0.00025786,2]
[423621812,1780263046000,-4933.55,0.00025786,2]
[423621817,1780263046000,-1651.81367706,0.00025962,2]
[423621821,1780263046000,-1003.0,0.00026,7]
[423621819,1780263046000,-500.0,0.00026,2]
[423621826,1780263046000,-157.06,0.00026247,2]
[423621824,1780263046000,-550.0,0.00026,2]
[423621837,1780263046000,-1836.785998,0.00026384,2]
[423621830,1780263046000,-1836.785998,0.00026384,2]
[423621828,1780263046000,-512.3,0.00026296,2]
[423621832,1780263046000,-1836.785998,0.00026384,2]
[423621835,1780263046000,-1836.785998,0.00026384,2]
[423621741,1780263046000,-186.0,0.00024,2]
[423621782,1780263046000,-207.0,0.00025,2]
[423621788,1780263046000,-643.0,0.00025,2]
[423621815,1780263046000,-243.5,0.00025786,2]
[423621768,1780263046000,-961.58486558,0.00024265,2]
[423621731,1780263046000,-383.0,0.00024,2]
[423621784,1780263046000,-402.0,0.00025,2]
[423621733,1780263046000,-388.0,0.00024,2]
[423621735,1780263046000,-1256.76188349,0.00024,2]
[423621728,1780263046000,-193.0,0.00024,2]
[423621743,1780263046000,-1188.0,0.00024,2]
[423621742,1780263046000,-545.0,0.00024,2]
[423621737,1780263046000,-626.0,0.00024,2]
[423621744,1780263046000,-500.0,0.00024,2]
[423621745,1780263046000,-831.51979762,0.00024045,2]
[423621747,1780263046000,-862.28603014,0.000241,2]
[423621749,1780263046000,-894.19061325,0.00024155,2]
[423621746,1780263046000,-1003.0,0.000241,7]
[423621739,1780263046000,-288.0,0.00024,2]
[423621756,1780263046000,-652.64,0.00024174,2]
[423621770,1780263046000,-1481.2378076,0.00024318,2]
[423621780,1780263046000,-763.1,0.00024905,7]
[423621778,1780263046000,-1536.04360648,0.00024866,2]
[423621776,1780263046000,-1000.0,0.00024658,2]
[423621766,1780263046000,-2991.49051684,0.00024246,2]
[423621764,1780263046000,-927.27566594,0.0002421,2]
[423621786,1780263046000,-404.0,0.00025,2]
[423621758,1780263046000,-758.18,0.00024174,2]
[423621762,1780263046000,-243.5,0.00024174,2]
[423621754,1780263046000,-1254.59,0.00024174,2]
[423621751,1780263046000,-273.0,0.00024164,2]
[423621760,1780263046000,-4933.55,0.00024174,2]
[423621927,1780263047000,-340.5,0.000274,7]
[423621920,1780263047000,-189.322484,0.00027397,2]
[423621922,1780263047000,-189.322484,0.00027397,2]
[423621930,1780263047000,-1842.0326633,0.00027606,2]
[423621929,1780263047000,-701.23,0.000274,7]
[423621925,1780263047000,-3347.22,0.000274,14]
[423621916,1780263047000,-189.322484,0.00027397,2]
[423621914,1780263047000,-189.322484,0.00027397,2]
[423621909,1780263047000,-9861.29,0.00027397,10]
[423621897,1780263047000,-151.0,0.00027397,2]
[423621905,1780263047000,-151.0,0.00027397,2]
[423621911,1780263047000,-8217.74,0.00027397,10]
[423621919,1780263047000,-189.322484,0.00027397,2]
[423621939,1780263047000,-1273.0,0.00027828,2]
[423621959,1780263047000,-200.0,0.00028079,2]
[423621944,1780263047000,-1226.0,0.00027828,2]
[423621932,1780263047000,-626.0,0.00027671,2]
[423621941,1780263047000,-525.0,0.00027828,2]
[423621937,1780263047000,-763.1,0.0002781,7]
[423621935,1780263047000,-500.0,0.00027807,15]
[423621948,1780263047000,-165.184,0.00027828,2]
[423621955,1780263047000,-1170.24406438,0.00028,60]
[423621950,1780263047000,-1356.0,0.00027828,2]
[423621953,1780263047000,-3639.0,0.00027828,2]
[423621946,1780263047000,-928.0,0.00027828,2]
[423621964,1780263047000,-626.0,0.00028205,3]
[423621962,1780263047000,-1910.18787185,0.00028154,2]
[423621892,1780263047000,-151.0,0.00027397,2]
[423621933,1780263047000,-329.0,0.00027673,10]
[423621907,1780263047000,-11833.55,0.00027397,10]
[423621854,1780263047000,-1776.30922209,0.00027058,2]
[423621913,1780263047000,-189.322484,0.00027397,2]
[423621839,1780263047000,-1836.785998,0.00026384,2]
[423621841,1780263047000,-1836.785998,0.00026384,2]
[423621843,1780263047000,-1836.785998,0.00026384,2]
[423621856,1780263047000,-4648.3,0.00027066,7]
[423621858,1780263047000,-626.0,0.00027137,2]
[423621850,1780263047000,-2000.0,0.00026849,7]
[423621847,1780263047000,-1712.93078311,0.0002651,2]
[423621845,1780263047000,-1836.785998,0.00026384,2]
[423621860,1780263047000,-200.0,0.00027288,2]
[423621852,1780263047000,-500.0,0.00026998,2]
[423621862,1780263047000,-867.48,0.00027397,30]
[423621865,1780263047000,-209.2462101,0.00027397,2]
[423621867,1780263047000,-1500.0,0.00027397,2]
[423621901,1780263047000,-151.0,0.00027397,2]
[423621869,1780263047000,-300.0,0.00027397,2]
[423621871,1780263047000,-1406.279124,0.00027397,2]
[423621884,1780263047000,-1406.279124,0.00027397,2]
[423621880,1780263047000,-1406.279124,0.00027397,2]
[423621875,1780263047000,-1406.279124,0.00027397,2]
[423621882,1780263047000,-1406.279124,0.00027397,2]
[423621886,1780263047000,-1406.279124,0.00027397,2]
[423621873,1780263047000,-1406.279124,0.00027397,2]
[423621888,1780263047000,-151.0,0.00027397,2]
[423621890,1780263047000,-151.0,0.00027397,2]
[423621895,1780263047000,-151.0,0.00027397,2]
[423621894,1780263047000,-151.0,0.00027397,2]
[423621903,1780263047000,-151.0,0.00027397,2]
[423621899,1780263047000,-151.0,0.00027397,2]
[423621878,1780263047000,-1406.279124,0.00027397,2]
[423621957,1780263047000,-600.0,0.00028,2]
[423621975,1780263047000,-161.90372201,0.00028402,2]
[423621968,1780263047000,-701.23,0.000283,7]
[423622034,1780263047000,-358.61,0.00028646,30]
[423622032,1780263047000,-227.54,0.00028644,2]
[423622026,1780263047000,-755.63,0.00028639,30]
[423622028,1780263047000,-1485.29,0.0002864,30]
[423622033,1780263047000,-743.49,0.00028645,30]
[423622044,1780263047000,-227.54,0.00028705,30]
[423622056,1780263047000,-227.54,0.00028767,7]
[423622060,1780263047000,-213.0,0.00028797,30]
[423622048,1780263047000,-227.54,0.00028736,2]
[423622058,1780263047000,-200.0,0.00028792,2]
[423622046,1780263047000,-213.0,0.00028735,2]
[423622052,1780263047000,-213.0,0.00028766,7]
[423622042,1780263047000,-213.0,0.00028704,30]
[423622040,1780263047000,-1980.8648231,0.00028702,2]
[423622050,1780263047000,-626.0,0.00028739,3]
[423622064,1780263047000,-755.63,0.00028805,7]
[423622062,1780263047000,-227.54,0.00028798,30]
[423622066,1780263047000,-1485.29,0.00028806,7]
[423622068,1780263047000,-743.49,0.0002881,7]
[423622070,1780263047000,-358.61,0.00028811,7]
[423622078,1780263047000,-4648.3,0.00028832,7]
[423622081,1780263047000,-1600.0,0.0002885,3]
[423622073,1780263047000,-213.0,0.00028828,2]
[423622083,1780263047000,-213.0,0.00028859,7]
[423622087,1780263047000,-200.0,0.0002887,2]
[423622075,1780263047000,-227.54,0.00028829,2]
[423622076,1780263047000,-1800.0,0.00028832,7]
[423621966,1780263047000,-512.3,0.00028267,2]
[423622054,1780263047000,-867.48,0.00028767,30]
[423622030,1780263047000,-500.0,0.00028642,16]
[423622085,1780263047000,-227.54,0.0002886,7]
[423622038,1780263047000,-555.0,0.000287,5]
[423622031,1780263047000,-213.0,0.00028642,2]
[423621991,1780263047000,-230.53775102,0.00028466,2]
[423621979,1780263047000,-166.91214356,0.00028402,2]
[423621989,1780263047000,-164.48780133,0.00028466,2]
[423621981,1780263047000,-222.13718411,0.00028402,2]
[423621973,1780263047000,-154.06848018,0.00028402,2]
[423621988,1780263047000,-166.3183966,0.00028466,2]
[423621986,1780263047000,-191.12378792,0.00028402,2]
[423621993,1780263047000,-160.90727939,0.00028466,2]
[423621983,1780263047000,-158.37046427,0.00028402,2]
[423621995,1780263047000,-260.15294102,0.00028466,2]
[423621977,1780263047000,-185.4332109,0.00028402,2]
[423621997,1780263047000,-281.0895347,0.00028466,2]
[423621999,1780263047000,-270.12294958,0.00028466,2]
[423621970,1780263047000,-341.11,0.000283,30]
[423622007,1780263047000,-156.84350314,0.00028466,2]
[423622003,1780263047000,-153.80625175,0.00028466,2]
[423622037,1780263047000,-227.54,0.00028674,7]
[423622024,1780263047000,-158.05797018,0.00028511,2]
[423622022,1780263047000,-193.98409769,0.00028511,2]
[423622019,1780263047000,-164.15872095,0.00028511,2]
[423622017,1780263047000,-161.35566711,0.00028511,2]
[423622035,1780263047000,-1800.0,0.0002867,30]
[423622013,1780263047000,-3347.22,0.000285,14]
[423622009,1780263047000,-187.09850581,0.00028466,2]
[423622011,1780263047000,-1003.0,0.000285,7]
[423622015,1780263047000,-340.5,0.000285,7]
[423622036,1780263047000,-213.0,0.00028673,7]
[423622001,1780263047000,-166.88481424,0.00028466,2]
[423622005,1780263047000,-178.58920526,0.00028466,2]
[423622161,1780263048000,-500.0,0.00029042,2]
[423622140,1780263048000,-500.0,0.00029042,2]
[423622169,1780263048000,-500.0,0.00029042,2]
[423622165,1780263048000,-500.0,0.00029042,2]
[423622151,1780263048000,-150.0,0.00029042,2]
[423622153,1780263048000,-185.20190008,0.00029042,2]
[423622155,1780263048000,-500.0,0.00029042,2]
[423622171,1780263048000,-500.0,0.00029042,2]
[423622159,1780263048000,-150.0,0.00029042,2]
[423622157,1780263048000,-150.0,0.00029042,2]
[423622163,1780263048000,-193.19710807,0.00029042,2]
[423622167,1780263048000,-500.0,0.00029042,2]
[423622185,1780263048000,-7635.97,0.000291,2]
[423622175,1780263048000,-526.8837841,0.00029042,2]
[423622177,1780263048000,-227.54,0.00029046,7]
[423622179,1780263048000,-213.0,0.00029046,7]
[423622181,1780263048000,-227.54,0.00029077,30]
[423622183,1780263048000,-213.0,0.00029077,30]
[423622191,1780263048000,-213.0,0.00029108,2]
[423622198,1780263048000,-227.54,0.00029139,7]
[423622200,1780263048000,-213.0,0.00029139,7]
[423622187,1780263048000,-25934.64,0.000291,2]
[423622196,1780263048000,-755.63,0.00029138,30]
[423622149,1780263048000,-150.0,0.00029042,2]
[423622193,1780263048000,-1485.29,0.00029138,30]
[423622173,1780263048000,-500.0,0.00029042,2]
[423622142,1780263048000,-243.61210468,0.00029042,2]
[423622116,1780263048000,-1800.0,0.00028995,2]
[423622144,1780263048000,-150.0,0.00029042,2]
[423622189,1780263048000,-227.54,0.00029108,2]
[423622090,1780263048000,-227.54,0.00028891,30]
[423622089,1780263048000,-213.0,0.0002889,30]
[423622092,1780263048000,-213.0,0.00028921,2]
[423622094,1780263048000,-227.54,0.00028922,2]
[423622096,1780263048000,-213.0,0.00028952,7]
[423622098,1780263048000,-227.54,0.00028953,7]
[423622100,1780263048000,-502.70716178,0.00028966,2]
[423622106,1780263048000,-1485.29,0.00028972,2]
[423622102,1780263048000,-188.64740034,0.00028971,2]
[423622104,1780263048000,-755.63,0.00028971,2]
[423622118,1780263048000,-9000.22049144,0.00029,2]
[423622147,1780263048000,-150.0,0.00029042,2]
[423622112,1780263048000,-227.54,0.00028984,30]
[423622114,1780263048000,-213.0,0.00028984,30]
[423622122,1780263048000,-219.55083264,0.00029,2]
[423622110,1780263048000,-358.61,0.00028977,2]
[423622108,1780263048000,-743.49,0.00028976,2]
[423622124,1780263048000,-157.4,0.00029,2]
[423622126,1780263048000,-157.4,0.00029,2]
[423622128,1780263048000,-701.23,0.00029,7]
[423622134,1780263048000,-227.54,0.00029015,2]
[423622132,1780263048000,-526.65237753,0.00029,2]
[423622130,1780263048000,-289.48,0.00029,30]
[423622138,1780263048000,-500.0,0.00029042,2]
[423622136,1780263048000,-213.0,0.00029015,2]
[423622120,1780263048000,-10670.38346668,0.00029,2]
[423622204,1780263048000,-743.49,0.00029142,30]
[423622218,1780263048000,-213.0,0.00029201,2]
[423622206,1780263048000,-1800.0,0.00029158,30]
[423622262,1780263048000,-1116.9244706,0.00029527,5]
[423622264,1780263048000,-1005.62936338,0.00029527,5]
[423622276,1780263048000,-1090.47752325,0.00029527,5]
[423622270,1780263048000,-1106.65427133,0.00029527,5]
[423622280,1780263048000,-1077.61497699,0.00029527,5]
[423622282,1780263048000,-1086.1924593,0.00029527,5]
[423622286,1780263048000,-1135.44811911,0.00029527,5]
[423622284,1780263048000,-1085.64329525,0.00029527,5]
[423622288,1780263048000,-1049.40315379,0.00029527,5]
[423622295,1780263048000,-1146.42652953,0.00029527,5]
[423622305,1780263048000,-1485.29,0.00029637,30]
[423622298,1780263048000,-1009.49065862,0.00029527,5]
[423622278,1780263048000,-1061.60790702,0.00029527,5]
[423622292,1780263048000,-1086.47865537,0.00029527,5]
[423622307,1780263048000,-755.63,0.00029637,30]
[423622301,1780263048000,-150.0,0.00029534,2]
[423622294,1780263048000,-1051.4461687,0.00029527,5]
[423622297,1780263048000,-1006.4281119,0.00029527,5]
[423622290,1780263048000,-1125.45150159,0.00029527,5]
[423622299,1780263048000,-1098.42769006,0.00029527,5]
[423622303,1780263048000,-701.23,0.000296,7]
[423622309,1780263048000,-358.61,0.00029639,30]
[423622311,1780263048000,-743.49,0.00029639,30]
[423622313,1780263048000,-1800.0,0.00029647,30]
[423622202,1780263048000,-358.61,0.00029142,30]
[423622331,1780263048000,-200.0,0.00029661,2]
[423622293,1780263048000,-1128.27416018,0.00029527,5]
[423622272,1780263048000,-1008.98316225,0.00029527,5]
[423622296,1780263048000,-1078.67499374,0.00029527,5]
[423622266,1780263048000,-1084.90796021,0.00029527,5]
[423622208,1780263048000,-227.54,0.0002917,30]
[423622268,1780263048000,-1068.03112727,0.00029527,5]
[423622220,1780263048000,-227.65,0.00029232,7]
[423622216,1780263048000,-227.54,0.00029201,2]
[423622212,1780263048000,-3347.22,0.000292,14]
[423622214,1780263048000,-340.5,0.000292,7]
[423622210,1780263048000,-213.0,0.0002917,30]
[423622222,1780263048000,-213.14,0.00029232,7]
[423622224,1780263048000,-2054.15682156,0.0002925,2]
[423622231,1780263048000,-1485.29,0.00029305,7]
[423622229,1780263048000,-755.63,0.00029304,7]
[423622233,1780263048000,-358.61,0.00029308,7]
[423622256,1780263048000,-500.0,0.00029501,18]
[423622226,1780263048000,-626.0,0.00029273,4]
[423622235,1780263048000,-743.49,0.00029308,7]
[423622260,1780263048000,-1040.26478272,0.00029527,5]
[423622252,1780263048000,-358.61,0.00029474,2]
[423622254,1780263048000,-1800.0,0.00029484,2]
[423622258,1780263048000,-578.12,0.00029527,7]
[423622246,1780263048000,-1485.29,0.00029471,2]
[423622250,1780263048000,-743.49,0.00029473,2]
[423622274,1780263048000,-1148.48207366,0.00029527,5]
[423622241,1780263048000,-1637.0,0.00029441,5]
[423622244,1780263048000,-3766.0,0.00029441,5]
[423622237,1780263048000,-1800.0,0.00029321,7]
[423622239,1780263048000,-200.0,0.0002933,2]
[423622248,1780263048000,-755.63,0.00029471,2]
[423622417,1780263049000,-216.16440807,0.00029799,2]
[423622410,1780263049000,-202.86114975,0.00029799,2]
[423622415,1780263049000,-204.54915868,0.00029799,2]
[423622406,1780263049000,-562.1790694,0.00029799,2]
[423622408,1780263049000,-196.01566885,0.00029799,2]
[423622393,1780263049000,-221.76764193,0.00029799,2]
[423622395,1780263049000,-461.07550205,0.00029799,2]
[423622404,1780263049000,-520.30588204,0.00029799,2]
[423622402,1780263049000,-191.53533824,0.00029799,2]
[423622419,1780263049000,-333.76962847,0.00029799,2]
[423622412,1780263049000,-540.24589915,0.00029799,2]
[423622421,1780263049000,-167.66732712,0.00029799,2]
[423622444,1780263049000,-322.71133421,0.00029846,2]
[423622426,1780263049000,-307.61250349,0.00029799,2]
[423622429,1780263049000,-313.68700628,0.00029799,2]
[423622428,1780263049000,-357.17841052,0.00029799,2]
[423622436,1780263049000,-626.0,0.00029807,4]
[423622434,1780263049000,-755.63,0.00029804,7]
[423622438,1780263049000,-1800.0,0.0002981,7]
[423622431,1780263049000,-1485.29,0.00029804,7]
[423622440,1780263049000,-202.13014603,0.00029846,2]
[423622442,1780263049000,-197.27832687,0.00029846,2]
[423622453,1780263049000,-316.11594037,0.00029846,2]
[423622449,1780263049000,-190.67469315,0.00029846,2]
[423622397,1780263049000,-207.70816275,0.00029799,2]
[423622424,1780263049000,-174.22859941,0.00029799,2]
[423622399,1780263049000,-321.81455878,0.00029799,2]
[423622338,1780263049000,-156.0,0.00029715,30]
[423622389,1780263049000,-328.97560266,0.00029799,2]
[423622455,1780263049000,-196.31984298,0.00029846,2]
[423622340,1780263049000,-1188.0,0.00029715,30]
[423622342,1780263049000,-191.00236268,0.00029733,2]
[423622333,1780263049000,-1000.0,0.000297,7]
[423622335,1780263049000,-545.0,0.00029715,30]
[423622344,1780263049000,-308.13696036,0.00029733,2]
[423622361,1780263049000,-382.24757583,0.00029733,2]
[423622366,1780263049000,-159.0,0.0002975,30]
[423622364,1780263049000,-156.06823759,0.00029733,2]
[423622353,1780263049000,-333.82428713,0.00029733,2]
[423622357,1780263049000,-158.50637335,0.00029733,2]
[423622350,1780263049000,-170.40289336,0.00029733,2]
[423622391,1780263049000,-202.43701426,0.00029799,2]
[423622346,1780263049000,-323.80744402,0.00029733,2]
[423622359,1780263049000,-316.74092854,0.00029733,2]
[423622355,1780263049000,-444.27436821,0.00029733,2]
[423622368,1780263049000,-193.0,0.0002975,30]
[423622381,1780263049000,-626.0,0.0002975,30]
[423622383,1780263049000,-288.0,0.0002975,30]
[423622370,1780263049000,-154.0,0.0002975,30]
[423622387,1780263049000,-332.6367932,0.00029799,2]
[423622385,1780263049000,-186.0,0.0002975,30]
[423622372,1780263049000,-383.0,0.0002975,30]
[423622376,1780263049000,-157.0,0.0002975,30]
[423622374,1780263049000,-388.0,0.0002975,30]
[423622378,1780263049000,-158.0,0.0002975,30]
[423622348,1780263049000,-370.86642179,0.00029733,2]
[423622447,1780263049000,-328.3174419,0.00029846,2]
[423622459,1780263049000,-3347.22,0.000299,14]
[423622451,1780263049000,-387.96819538,0.00029846,2]